bitfinex/quotes_SOLUSD_20250529
["timestamp","ask_amount","ask_price","bid_price","bid_amount"]
[1748521938557,12.2863298,172.69,172.61,0.42648471]
[1748521938765,12.2863298,172.68,172.63,12.2863298]
[1748521938961,12.2863298,172.67,172.63,0.14216157]
[1748521939381,12.2863298,172.67,172.62,12.2863298]
[1748521939779,5.79139398,172.67,172.62,12.2863298]
[1748521940686,5.79139398,172.67,172.63,12.2863298]
[1748521941594,5.7910586,172.68,172.64,12.2863298]
[1748521941798,5.7910586,172.68,172.63,12.2863298]
[1748521942901,5.79011868,172.71,172.67,12.2863298]
[1748521943897,18.07644848,172.71,172.67,12.2863298]
[1748521944067,18.07644848,172.71,172.65,0.14216157]
[1748521944068,12.2863298,172.7,172.65,12.42849137]
[1748521944275,12.2863298,172.68,172.63,12.2863298]
[1748521944462,20.2652504,172.71,172.62,0.14216157]
[1748521944463,12.2863298,172.67,172.62,0.14216157]
[1748521944666,12.2863298,172.67,172.62,12.42849137]
[1748521944899,18.07805921,172.66,172.62,0.14216157]
[1748521945692,18.07805921,172.66,172.61,0.14216157]
[1748521945900,18.07805921,172.66,172.62,0.14216157]
[1748521946877,5.79172941,172.66,172.62,12.42849137]
[1748521948476,5.79139398,172.67,172.62,12.42849137]
[1748521948691,18.07772378,172.67,172.62,12.42849137]
[1748521950494,12.2863298,172.64,172.61,0.14216157]
[1748521950888,12.2863298,172.65,172.61,0.14216157]
[1748521952095,18.07862199,172.65,172.61,0.14216157]
[1748521954187,18.0787994,172.64,172.59,12.57065294]
[1748521956808,12.2863298,172.62,172.58,0.14216157]
[1748521958096,12.2863298,172.61,172.56,22.2463298]
[1748521958283,12.2863298,172.6,172.57,0.14216157]
[1748521958843,12.2863298,172.6,172.56,22.2463298]
[1748521958844,18.08019452,172.6,172.56,22.2463298]
[1748521959304,18.08019452,172.6,172.56,12.2863298]
[1748521960305,12.2863298,172.61,172.56,12.2863298]
[1748521960707,12.2863298,172.61,172.56,0.14216157]
[1748521961210,12.2863298,172.61,172.56,12.42849137]
[1748521961608,12.2863298,172.62,172.57,12.2863298]
[1748521962298,5.7934071,172.61,172.57,12.2863298]
[1748521962619,14.48100092,172.64,172.56,0.14216157]
[1748521962620,12.2863298,172.64,172.59,12.2863298]
[1748521962805,12.2863298,172.65,172.6,12.2863298]
[1748521963007,5.79172941,172.66,172.61,12.42849137]
[1748521963215,5.79172941,172.66,172.62,12.2863298]
[1748521963510,9.96,172.67,172.63,12.42849137]
[1748521963511,15.75149609,172.67,172.63,12.42849137]
[1748521963912,28.03782589,172.67,172.63,0.14216157]
[1748521964214,5.79206487,172.65,172.61,12.2863298]
[1748521964916,5.79206487,172.65,172.6,0.14216157]
[1748521964917,18.07839467,172.65,172.6,12.42849137]
[1748521965094,12.2863298,172.64,172.59,12.2863298]
[1748521966016,12.2863298,172.63,172.58,12.42849137]
[1748521966620,12.2863298,172.63,172.58,0.14216157]
[1748521966621,5.79307148,172.62,172.58,0.14216157]
[1748521966926,5.79307148,172.62,172.58,12.42849137]
[1748521969397,18.0791881,172.63,172.58,12.42849137]
[1748521970602,14.48016217,172.65,172.58,12.42849137]
[1748521970833,12.2863298,172.64,172.59,12.2863298]
[1748521970990,12.2863298,172.65,172.6,12.2863298]
[1748521971511,5.79172941,172.66,172.62,12.2863298]
[1748521972612,48.2463298,172.67,172.62,12.2863298]
[1748521972613,54.03780971,172.67,172.62,12.2863298]
[1748521972819,15.75147991,172.67,172.63,12.2863298]
[1748521973323,28.03780971,172.67,172.63,0.14216157]
[1748521974722,5.79206487,172.65,172.61,12.2863298]
[1748521975326,5.79206487,172.65,172.6,36.56216157]
[1748521975327,18.07839467,172.65,172.6,0.14216157]
[1748521975630,12.2863298,172.64,172.6,0.14216157]
[1748521976134,12.2863298,172.63,172.58,12.2863298]
[1748521976807,5.79307148,172.62,172.58,12.2863298]
[1748521977635,5.79287313,172.63,172.59,12.2863298]
[1748521978802,18.07920293,172.63,172.58,0.14216157]
[1748521979005,12.2863298,172.62,172.57,0.14216157]
[1748521979306,12.2863298,172.61,172.56,38.2863298]
[1748521980028,12.2863298,172.61,172.56,26.0]
[1748521980327,5.79374275,172.6,172.56,12.2863298]
[1748521986442,12.2863298,172.61,172.56,12.2863298]
[1748521986624,12.2863298,172.63,172.58,12.2863298]
[1748521986942,5.79307148,172.62,172.59,12.2863298]
[1748521987234,5.79307148,172.62,172.58,12.2863298]
[1748521988139,18.07940128,172.62,172.58,0.14216157]
[1748521989130,18.07940128,172.62,172.56,0.42648471]
[1748521989347,18.07940128,172.62,172.58,0.14216157]
[1748521990722,5.79307148,172.62,172.58,12.42849137]
[1748521994048,5.7927359,172.63,172.58,12.42849137]
[1748521994422,18.0790657,172.63,172.58,12.42849137]
[1748521996380,20.27163709,172.66,172.58,12.42849137]
[1748521996556,12.2863298,172.63,172.58,12.42849137]
[1748521997551,5.79307148,172.62,172.58,12.42849137]
[1748521997921,12.2863298,172.61,172.56,12.2863298]
[1748521999248,5.79374275,172.6,172.56,12.2863298]
[1748521999625,12.2863298,172.57,172.51,1.6552]
[1748521999855,12.2863298,172.56,172.52,12.42849137]
[1748522000435,12.2863298,172.57,172.52,12.42849137]
[1748522000956,12.2863298,172.56,172.52,0.14216157]
[1748522001290,5.79642939,172.52,172.49,9.66]
[1748522001571,5.79642939,172.52,172.48,12.42849137]
[1748522002144,18.08275919,172.52,172.48,0.14216157]
[1748522002757,12.2863298,172.5,172.45,12.2863298]
[1748522003179,12.2863298,172.49,172.44,9.80216157]
[1748522003486,12.2863298,172.47,172.41,0.14216157]
[1748522003625,12.2863298,172.47,172.42,12.2863298]
[1748522004637,12.2863298,172.46,172.41,12.42849137]
[1748522004848,12.2863298,172.46,172.41,0.14216157]
[1748522005041,12.2863298,172.45,172.41,0.14216157]
[1748522005539,12.2863298,172.46,172.41,18.22858421]
[1748522006331,12.2863298,172.45,172.41,0.14216157]
[1748522006542,12.2863298,172.45,172.4,12.2863298]
[1748522007368,35.66,172.49,172.4,0.14216157]
[1748522007369,12.2863298,172.44,172.4,0.14216157]
[1748522008362,18.08516752,172.45,172.4,0.14216157]
[1748522008739,12.2863298,172.45,172.4,5.94259677]
[1748522008953,12.2863298,172.45,172.4,18.22892657]
[1748522009155,5.79784491,172.48,172.42,12.2863298]
[1748522009370,18.08447112,172.47,172.42,12.2863298]
[1748522009579,12.2863298,172.47,172.42,18.08610763]
[1748522009738,41.45753192,172.49,172.43,12.2863298]
[1748522009931,41.45753192,172.49,172.46,12.2863298]
[1748522009932,9.66,172.49,172.46,12.2863298]
[1748522010246,5.7957575,172.54,172.48,12.2863298]
[1748522010439,12.2863298,172.52,172.47,12.2863298]
[1748522011769,18.08296658,172.52,172.47,12.2863298]
[1748522012145,5.79663678,172.52,172.48,12.2863298]
[1748522012341,5.79663678,172.52,172.49,12.2863298]
[1748522012837,5.79663678,172.52,172.48,12.2863298]
[1748522014048,18.08296658,172.52,172.47,12.42849137]
[1748522014576,18.08251902,172.53,172.48,12.2863298]
[1748522014736,5.79618922,172.53,172.49,12.2863298]
[1748522015874,18.08251902,172.53,172.48,12.2863298]
[1748522018273,12.2863298,172.52,172.46,1.5493]
[1748522018577,12.2863298,172.52,172.47,12.2863298]
[1748522019447,5.7967654,172.51,172.47,12.00517104]
[1748522020264,5.7967654,172.51,172.46,1.5493]
[1748522020265,5.7967654,172.51,172.48,12.2863298]
[1748522021348,5.79642939,172.52,172.48,12.2863298]
[1748522022344,18.08275919,172.52,172.47,12.42849137]
[1748522022671,12.2863298,172.49,172.44,12.42849137]
[1748522022979,12.2863298,172.48,172.42,0.14216157]
[1748522023165,12.2863298,172.48,172.44,0.14216157]
[1748522023357,5.79777365,172.48,172.44,12.42849137]
[1748522024756,12.2863298,172.47,172.42,12.2863298]
[1748522025070,18.08410345,172.48,172.43,12.2863298]
[1748522025446,18.08410345,172.48,172.42,0.14216157]
[1748522025666,18.08410345,172.48,172.43,12.2863298]
[1748522025979,18.08410345,172.48,172.42,12.42849137]
[1748522026151,18.08410345,172.48,172.43,12.2863298]
[1748522026480,5.79755544,172.49,172.45,12.2863298]
[1748522027672,5.79716412,172.5,172.47,12.2863298]
[1748522027873,18.08315928,172.51,172.46,12.2863298]
[1748522029175,18.08315928,172.51,172.45,0.14216157]
[1748522029176,5.79682948,172.51,172.48,12.2863298]
[1748522029973,5.79642939,172.52,172.48,12.2863298]
[1748522030278,5.79642939,172.52,172.49,12.2863298]
[1748522030479,5.79642939,172.52,172.48,12.2863298]
[1748522031460,5.79609343,172.53,172.48,12.2863298]
[1748522031671,18.08242323,172.53,172.48,12.2863298]
[1748522032063,18.08242323,172.53,172.49,12.2863298]
[1748522032272,5.79609343,172.53,172.49,12.2863298]
[1748522032484,5.79588146,172.54,172.51,12.2863298]
[1748522032696,5.79554336,172.55,172.53,12.2863298]
[1748522033085,12.2863298,172.58,172.53,12.2863298]
[1748522033086,5.79474995,172.57,172.53,12.2863298]
[1748522034973,5.79474995,172.57,172.55,12.2863298]
[1748522035267,24.1649484,172.6,172.52,0.14216157]
[1748522035268,5.79407845,172.59,172.56,12.2863298]
[1748522036180,5.79407845,172.59,172.52,36.44216157]
[1748522036181,15.47385586,172.6,172.57,12.2863298]
[1748522036358,15.47385586,172.6,172.56,12.2863298]
[1748522037160,15.47385586,172.6,172.57,12.2863298]
[1748522037502,5.79385586,172.6,172.58,12.2863298]
[1748522037661,5.79307148,172.62,172.58,12.2863298]
[1748522038463,5.79307148,172.62,172.59,12.2863298]
[1748522039159,20.27505552,172.63,172.59,12.2863298]
[1748522039562,5.7927359,172.63,172.59,12.2863298]
[1748522041366,5.7927359,172.63,172.6,12.2863298]
[1748522041700,18.0790657,172.63,172.59,12.2863298]
[1748522041903,5.7927359,172.63,172.59,12.2863298]
[1748522042697,5.7927359,172.63,172.56,6.07933337]
[1748522042994,5.7927359,172.63,172.59,12.2863298]
[1748522043373,5.79243328,172.64,172.61,12.2863298]
[1748522049372,32.559764,172.64,172.6,12.2863298]
[1748522049587,12.2863298,172.62,172.57,12.2863298]
[1748522050106,12.2863298,172.62,172.56,0.14216157]
[1748522050286,12.2863298,172.62,172.57,12.2863298]
[1748522051075,5.7934071,172.61,172.57,12.2863298]
[1748522051988,5.7934071,172.61,172.59,12.2863298]
[1748522053321,12.2863298,172.61,172.57,12.2863298]
[1748522053615,12.2863298,172.6,172.55,12.2863298]
[1748522054124,12.2863298,172.59,172.53,0.14216157]
[1748522054312,12.2863298,172.59,172.54,12.2863298]
[1748522055400,5.79441418,172.58,172.54,12.2863298]
[1748522055741,32.56677944,172.58,172.54,12.2863298]
[1748522056018,12.2863298,172.57,172.53,12.2863298]
[1748522056217,32.56677944,172.58,172.53,12.2863298]
[1748522056923,12.2863298,172.57,172.53,12.2863298]
[1748522057093,12.2863298,172.57,172.52,12.2863298]
[1748522057503,5.79508576,172.56,172.52,12.2863298]
[1748522057816,12.2863298,172.55,172.5,20.61966313]
[1748522058622,12.2863298,172.54,172.5,20.61966313]
[1748522058991,20.28280017,172.56,172.5,20.61966313]
[1748522058992,12.2863298,172.55,172.5,20.61966313]
[1748522059195,32.56912997,172.56,172.51,12.2863298]
[1748522061824,18.08141556,172.56,172.51,12.2863298]
[1748522062005,5.79441418,172.58,172.55,12.2863298]
[1748522062535,14.48334382,172.62,172.57,12.2863298]
[1748522062697,5.7934071,172.61,172.59,12.2863298]
[1748522062894,21.9463298,172.64,172.59,12.2863298]
[1748522063565,9.66,172.64,172.59,12.2863298]
[1748522063719,9.66,172.64,172.61,12.2863298]
[1748522063720,5.7927359,172.63,172.61,12.2863298]
[1748522063916,5.7927359,172.63,172.6,12.2863298]
[1748522065320,5.7927359,172.63,172.61,12.2863298]
[1748522065541,5.7927359,172.63,172.58,0.14216157]
[1748522065542,5.79206487,172.65,172.62,12.2863298]
[1748522065704,5.79206487,172.65,172.59,0.14216157]
[1748522065911,5.79206487,172.65,172.61,12.2863298]
[1748522067226,12.2863298,172.63,172.54,6.78896157]
[1748522067537,20.27222704,172.65,172.56,0.14216157]
[1748522067538,12.2863298,172.62,172.56,0.14216157]
[1748522067702,12.2863298,172.62,172.57,12.2863298]
[1748522069415,5.7934071,172.61,172.58,12.2863298]
[1748522069614,5.7934071,172.61,172.59,12.2863298]
[1748522069816,12.2863298,172.64,172.59,12.2863298]
[1748522069817,5.7927359,172.63,172.59,12.2863298]
[1748522070923,5.7927359,172.63,172.6,12.2863298]
[1748522071127,5.7927359,172.63,172.61,12.2863298]
[1748522071527,12.2863298,172.65,172.6,12.2863298]
[1748522072710,18.07805921,172.66,172.61,12.2863298]
[1748522074251,5.79172941,172.66,172.62,12.2863298]
[1748522074550,5.79172941,172.66,172.63,12.2863298]
[1748522075249,5.79172941,172.66,172.64,12.2863298]
[1748522075411,5.7910586,172.68,172.65,12.2863298]
[1748522078624,5.7910586,172.68,172.66,12.2863298]
[1748522079837,26.0,172.7,172.66,12.2863298]
[1748522079838,5.79072326,172.69,172.66,12.2863298]
[1748522080434,5.79072326,172.69,172.65,12.2863298]
[1748522083855,18.07705306,172.69,172.64,12.2863298]
[1748522084356,12.2863298,172.67,172.6,1.57]
[1748522084524,12.2863298,172.67,172.62,12.2863298]
[1748522086126,5.79172941,172.66,172.62,12.2863298]
[1748522087329,5.79172941,172.66,172.61,0.14216157]
[1748522087543,5.79172941,172.66,172.62,12.2863298]
[1748522088124,5.79172941,172.66,172.61,0.14216157]
[1748522088351,5.79172941,172.66,172.62,12.2863298]
[1748522091161,12.2863298,172.65,172.6,12.2863298]
[1748522091363,5.79240037,172.64,172.61,12.2863298]
[1748522091568,21.9263298,172.68,172.63,12.2863298]
[1748522092779,5.79139398,172.67,172.63,12.2863298]
[1748522098694,18.07772378,172.67,172.61,0.14216157]
[1748522098862,18.07772378,172.67,172.62,12.2863298]
[1748522100954,32.55620875,172.67,172.62,12.2863298]
[1748522101175,12.2863298,172.63,172.58,12.2863298]
[1748522101693,12.2863298,172.62,172.57,12.2863298]
[1748522101986,5.79307148,172.62,172.58,12.2863298]
[1748522102157,12.2863298,172.63,172.59,12.2863298]
[1748522102158,5.79286355,172.63,172.59,12.2863298]
[1748522102982,5.79286355,172.63,172.6,12.2863298]
[1748522104196,5.79240037,172.64,172.6,12.2863298]
[1748522108271,12.2863298,172.65,172.6,12.2863298]
[1748522108272,18.0784555,172.65,172.6,12.2863298]
[1748522110286,18.0784555,172.65,172.58,0.28432314]
[1748522110482,18.0784555,172.65,172.6,12.2863298]
[1748522112673,12.2863298,172.64,172.59,12.2863298]
[1748522114584,5.7927359,172.63,172.59,12.2863298]
[1748522115203,5.7927359,172.63,172.6,12.2863298]
[1748522115601,5.7927359,172.63,172.57,0.42648471]
[1748522115787,5.7927359,172.63,172.59,12.2863298]
[1748522117603,5.7927359,172.63,172.57,0.42648471]
[1748522117604,12.2863298,172.62,172.57,12.2863298]
[1748522117901,12.2863298,172.62,172.56,27.548]
[1748522118101,12.2863298,172.6,172.56,1.548]
[1748522118403,20.27457567,172.63,172.53,12.2863298]
[1748522118404,12.2863298,172.58,172.53,12.2863298]
[1748522118575,12.2863298,172.59,172.54,12.2863298]
[1748522119411,5.79441418,172.58,172.54,12.2863298]
[1748522120097,18.08074398,172.58,172.52,0.14216157]
[1748522120304,12.2863298,172.57,172.52,12.2863298]
[1748522121400,5.79508576,172.56,172.52,12.2863298]
[1748522122205,9.64,172.62,172.55,12.2863298]
[1748522122206,12.2863298,172.6,172.55,12.2863298]
[1748522123892,18.08007255,172.6,172.52,0.14216157]
[1748522124085,18.08007255,172.6,172.55,12.2863298]
[1748522124405,12.2863298,172.59,172.52,0.14216157]
[1748522124605,20.27809964,172.6,172.52,12.2863298]
[1748522124606,38.2863298,172.57,172.52,12.2863298]
[1748522125186,12.2863298,172.56,172.51,12.2863298]
[1748522125985,5.79542161,172.55,172.51,12.2863298]
[1748522126186,5.79542161,172.55,172.5,0.14216157]
[1748522126501,26.0,172.59,172.5,5.93921741]
[1748522126688,12.2863298,172.58,172.53,12.2863298]
[1748522126883,38.2863298,172.59,172.54,12.2863298]
[1748522127111,12.2863298,172.58,172.54,12.2863298]
[1748522127306,12.2863298,172.58,172.53,12.2863298]
[1748522127623,5.79508576,172.56,172.53,12.2863298]
[1748522128011,5.79508576,172.56,172.52,12.2863298]
[1748522128746,9.64,172.62,172.55,12.2863298]
[1748522128909,9.64,172.62,172.55,0.14216157]
[1748522128910,5.7934071,172.61,172.55,0.14216157]
[1748522129109,5.7934071,172.61,172.58,12.2863298]
[1748522129304,5.7934071,172.61,172.57,12.2863298]
[1748522130603,15.43319822,172.62,172.58,12.2863298]
[1748522131402,9.64,172.62,172.59,12.2863298]
[1748522131597,5.79274179,172.63,172.59,12.2863298]
[1748522133309,5.79274179,172.63,172.6,12.2863298]
[1748522135347,31.79249606,172.64,172.6,12.2863298]
[1748522135533,24.11897709,172.67,172.61,12.2863298]
[1748522135534,18.07805921,172.66,172.61,12.2863298]
[1748522138069,12.2863298,172.65,172.6,12.2863298]
[1748522138936,20.27105293,172.66,172.6,12.2863298]
[1748522139135,5.79240037,172.64,172.61,12.2863298]
[1748522140459,5.79206487,172.65,172.61,12.2863298]
[1748522140783,5.79185517,172.66,172.62,12.2863298]
[1748522141082,5.79185517,172.66,172.63,12.2863298]
[1748522141866,5.79185517,172.66,172.62,12.42849137]
[1748522145249,5.79185517,172.66,172.62,12.2863298]
[1748522148253,5.79185517,172.66,172.63,12.2863298]
[1748522149473,5.79139398,172.67,172.63,12.2863298]
[1748522153477,5.79139398,172.67,172.62,12.2863298]
[1748522155879,5.79139398,172.67,172.63,12.2863298]
[1748522160665,5.79139398,172.67,172.62,12.2863298]
[1748522160666,32.55620875,172.67,172.62,12.2863298]
[1748522160861,12.2863298,172.63,172.58,12.42849137]
[1748522161059,12.2863298,172.62,172.57,12.2863298]
[1748522161282,12.2863298,172.61,172.56,12.2863298]
[1748522162162,12.2863298,172.6,172.56,12.2863298]
[1748522162572,5.79374275,172.6,172.56,12.2863298]
[1748522163587,18.08007255,172.6,172.56,12.2863298]
[1748522164485,5.79374275,172.6,172.56,12.2863298]
[1748522164679,14.48232963,172.63,172.56,12.2863298]
[1748522164680,20.27506553,172.63,172.56,12.2863298]
[1748522164885,12.2863298,172.61,172.56,12.2863298]
[1748522165085,12.2863298,172.61,172.55,1.6439]
[1748522165086,18.0790657,172.63,172.58,12.2863298]
[1748522166773,5.7927359,172.63,172.58,12.2863298]
[1748522166972,18.0790657,172.63,172.58,12.2863298]
[1748522167690,12.2863298,172.62,172.58,12.2863298]
[1748522167879,18.0790657,172.63,172.58,12.2863298]
[1748522171783,5.7934071,172.61,172.58,12.2863298]
[1748522172307,5.7934071,172.61,172.56,12.2863298]
[1748522172308,18.0797369,172.61,172.56,12.2863298]
[1748522178209,12.2863298,172.6,172.55,13.9302298]
[1748522178627,18.0797369,172.61,172.55,1.6439]
[1748522178918,18.0797369,172.61,172.56,12.2863298]
[1748522179822,5.79314095,172.62,172.58,12.2863298]
[1748522179990,31.79286624,172.63,172.59,12.2863298]
[1748522180604,5.79286624,172.63,172.59,12.2863298]
[1748522181089,18.07919604,172.63,172.58,12.2863298]
[1748522181304,12.2863298,172.62,172.57,12.42849137]
[1748522181997,18.07919604,172.63,172.58,12.2863298]
[1748522182605,18.07919604,172.63,172.57,0.14216157]
[1748522182816,18.07919604,172.63,172.58,12.2863298]
[1748522183817,18.07919604,172.63,172.57,0.14216157]
[1748522183999,12.2863298,172.61,172.56,12.42849137]
[1748522184210,12.2863298,172.61,172.54,0.14216157]
[1748522184211,12.2863298,172.6,172.54,0.14216157]
[1748522184395,26.0,172.61,172.54,12.2863298]
[1748522184396,12.2863298,172.59,172.54,12.2863298]
[1748522185507,12.2863298,172.6,172.55,12.2863298]
[1748522186495,5.79407845,172.59,172.55,12.2863298]
[1748522186702,5.79383901,172.6,172.56,12.2863298]
[1748522186904,5.79347226,172.61,172.58,12.2863298]
[1748522190294,5.79347226,172.61,172.57,12.2863298]
[1748522192505,5.79347226,172.61,172.54,0.14216157]
[1748522192706,12.2863298,172.59,172.54,12.2863298]
[1748522194913,5.79441418,172.58,172.54,12.2863298]
[1748522195112,5.79441418,172.58,172.55,12.2863298]
[1748522195826,5.7941518,172.59,172.55,12.2863298]
[1748522198245,12.2863298,172.56,172.52,0.14216157]
[1748522198532,12.2863298,172.54,172.5,8.33333333]
[1748522198731,9.6,172.58,172.5,8.33333333]
[1748522198732,12.2863298,172.53,172.5,8.33333333]
[1748522198928,9.6,172.58,172.5,8.33333333]
[1748522198929,12.2863298,172.55,172.5,8.33333333]
[1748522199107,12.2863298,172.55,172.5,20.61966313]
[1748522200115,5.7957575,172.54,172.5,20.61966313]
[1748522201017,5.79550296,172.55,172.51,12.2863298]
[1748522201223,5.79521054,172.56,172.52,12.2863298]
[1748522201521,5.79521054,172.56,172.51,0.14216157]
[1748522201725,18.08154034,172.56,172.51,12.42849137]
[1748522202041,12.2863298,172.55,172.51,12.2863298]
[1748522202210,5.7957575,172.54,172.51,12.2863298]
[1748522202613,5.7957575,172.54,172.5,20.61966313]
[1748522203334,5.7957575,172.54,172.51,12.2863298]
[1748522203725,5.7957575,172.54,172.5,20.61966313]
[1748522204319,5.7957575,172.54,172.51,12.2863298]
[1748522208207,5.79474995,172.57,172.51,12.2863298]
[1748522208512,20.28162484,172.57,172.51,12.2863298]
[1748522208718,12.2863298,172.55,172.51,12.2863298]
[1748522209512,12.2863298,172.56,172.51,12.2863298]
[1748522210532,5.7957575,172.54,172.51,12.2863298]
[1748522210847,5.7957575,172.54,172.5,20.61966313]
[1748522212215,5.7957575,172.54,172.5,8.33333333]
[1748522212418,12.2863298,172.53,172.5,8.33333333]
[1748522212648,5.79642939,172.52,172.5,8.33333333]
[1748522214048,18.08242323,172.53,172.5,8.33333333]
[1748522214924,5.79609343,172.53,172.5,8.33333333]
[1748522215950,12.2863298,172.54,172.5,8.33333333]
[1748522215951,5.79569383,172.55,172.5,20.61966313]
[1748522216258,5.79569383,172.55,172.52,12.2863298]
[1748522216865,5.79569383,172.55,172.51,12.42849137]
[1748522218557,12.2863298,172.57,172.52,12.2863298]
[1748522218768,9.6,172.58,172.52,12.2863298]
[1748522218769,15.39443491,172.58,172.55,12.2863298]
[1748522219047,5.79443491,172.58,172.54,12.2863298]
[1748522219245,18.08076471,172.58,172.54,12.2863298]
[1748522219445,8.80718731,172.58,172.53,0.14216157]
[1748522219744,40.48410712,172.61,172.53,0.14216157]
[1748522219745,12.2863298,172.59,172.55,12.2863298]
[1748522220046,12.2863298,172.59,172.54,12.2863298]
[1748522220927,5.79441418,172.58,172.54,12.2863298]
[1748522221137,18.08074398,172.58,172.53,12.42849137]
[1748522223059,12.2863298,172.56,172.51,36.12]
[1748522223250,12.2863298,172.56,172.51,48.4063298]
[1748522224334,12.2863298,172.57,172.53,12.2863298]
[1748522224533,26.77236526,172.58,172.53,12.2863298]
[1748522225037,5.79407845,172.59,172.55,12.2863298]
[1748522225566,5.79386033,172.6,172.57,12.2863298]
[1748522225856,5.79386033,172.6,172.56,12.2863298]
[1748522226334,18.08019013,172.6,172.55,12.2863298]
[1748522226545,12.2863298,172.59,172.54,12.2863298]
[1748522226851,12.2863298,172.58,172.53,12.2863298]
[1748522229036,5.79474995,172.57,172.53,12.2863298]
[1748522230235,5.794435,172.58,172.54,12.42849137]
[1748522230436,5.794435,172.58,172.55,12.2863298]
[1748522230840,5.794435,172.58,172.54,12.2863298]
[1748522231040,18.0807648,172.58,172.54,12.2863298]
[1748522233432,12.2863298,172.56,172.52,12.2863298]
[1748522233634,12.2863298,172.56,172.51,12.57065294]
[1748522234572,12.2863298,172.55,172.51,12.57065294]
[1748522235440,12.2863298,172.56,172.51,12.57065294]
[1748522237279,12.2863298,172.53,172.48,13.8775298]
[1748522237478,12.2863298,172.53,172.49,0.14216157]
[1748522238468,12.2863298,172.53,172.48,13.8775298]
[1748522238763,18.08275919,172.52,172.48,1.5912]
[1748522238982,18.08275919,172.52,172.47,12.42849137]
[1748522238983,12.2863298,172.51,172.47,12.42849137]
[1748522239270,12.2863298,172.51,172.47,0.14216157]
[1748522239480,12.2863298,172.5,172.46,0.14216157]
[1748522240634,18.08363945,172.5,172.46,0.14216157]
[1748522241049,12.2863298,172.49,172.46,0.14216157]
[1748522241268,12.2863298,172.48,172.44,1.6324]
[1748522242144,12.2863298,172.49,172.44,13.9187298]
[1748522243063,18.08379282,172.49,172.44,7.43147971]
[1748522243374,18.08379282,172.49,172.44,19.71780951]
[1748522243953,12.2863298,172.51,172.46,12.2863298]
[1748522245066,18.08316709,172.51,172.46,12.2863298]
[1748522245752,12.2863298,172.5,172.45,12.42849137]
[1748522246275,12.2863298,172.5,172.45,18.22723838]
[1748522246470,18.08316709,172.51,172.46,12.2863298]
[1748522246685,12.2863298,172.51,172.47,0.14216157]
[1748522246869,18.08277326,172.52,172.47,12.42849137]
[1748522247063,18.08277326,172.52,172.47,0.14216157]
[1748522247064,12.2863298,172.51,172.47,0.14216157]
[1748522247971,12.2863298,172.5,172.45,0.14216157]
[1748522248177,12.2863298,172.5,172.45,12.42849137]
[1748522248478,12.2863298,172.49,172.45,0.14216157]
[1748522249463,18.08402184,172.49,172.45,0.14216157]
[1748522249755,18.08402184,172.49,172.44,13.9187298]
[1748522251064,18.08402184,172.49,172.44,1.6324]
[1748522251065,5.79769204,172.49,172.44,1.6324]
[1748522251267,5.79769204,172.49,172.45,12.2863298]
[1748522251662,18.08402184,172.49,172.44,1.6324]
[1748522251866,12.2863298,172.48,172.44,0.14216157]
[1748522252190,12.2863298,172.48,172.43,12.2863298]
[1748522253286,5.79810981,172.47,172.43,12.2863298]
[1748522253480,5.79810981,172.47,172.42,12.42849137]
[1748522253481,18.08443961,172.47,172.42,12.42849137]
[1748522253663,18.08443961,172.47,172.42,12.2863298]
[1748522254872,5.79810981,172.47,172.43,12.2863298]
[1748522255386,18.08421457,172.48,172.43,12.2863298]
[1748522255969,5.79710144,172.5,172.45,12.2863298]
[1748522256183,5.79710144,172.5,172.46,12.2863298]
[1748522257490,18.08343124,172.5,172.45,12.2863298]
[1748522259995,5.79710144,172.5,172.45,12.2863298]
[1748522260290,18.08343124,172.5,172.45,12.2863298]
[1748522262287,26.0,172.51,172.46,12.2863298]
[1748522262288,5.79678789,172.51,172.46,12.2863298]
[1748522262479,18.08311769,172.51,172.46,12.2863298]
[1748522263169,12.2863298,172.5,172.45,12.42849137]
[1748522264174,18.08361512,172.5,172.46,12.2863298]
[1748522265773,12.2863298,172.51,172.46,12.2863298]
[1748522266375,12.2863298,172.5,172.45,12.2863298]
[1748522267885,5.79743753,172.49,172.45,12.2863298]
[1748522268583,18.08376733,172.49,172.45,12.2863298]
[1748522270184,5.79743753,172.49,172.45,12.2863298]
[1748522274791,18.08376733,172.49,172.43,0.28432314]
[1748522275110,12.2863298,172.48,172.43,12.42849137]
[1748522275491,5.79810981,172.47,172.43,12.2863298]
[1748522275700,5.79810981,172.47,172.41,26.0]
[1748522275701,18.08443961,172.47,172.41,26.0]
[1748522275884,18.08443961,172.47,172.42,12.2863298]
[1748522276294,5.79810981,172.47,172.43,12.2863298]
[1748522276609,18.08443961,172.47,172.42,12.2863298]
[1748522277285,5.79810981,172.47,172.43,12.2863298]
[1748522277605,5.79810981,172.47,172.41,5.9422359]
[1748522277780,5.79810981,172.47,172.41,0.14216157]
[1748522277985,5.79810981,172.47,172.43,12.2863298]
[1748522280216,12.2863298,172.47,172.43,12.2863298]
[1748522280411,12.2863298,172.44,172.37,0.14216157]
[1748522280621,12.2863298,172.43,172.38,12.2863298]
[1748522280836,26.0,172.48,172.37,0.14216157]
[1748522280837,12.2863298,172.42,172.37,12.2863298]